fUSD/lending_fUSD_20260610
["ID","MTS","AMOUNT","RATE_DAILY","PERIOD"]
[424734242,1781097032000,-466.0,0.0001255,2]
[424734275,1781097032000,-500.0,0.0001255,2]
[424734305,1781097032000,-500.28994077,0.00012797,2]
[424734308,1781097032000,-500.0,0.00012797,2]
[424734306,1781097032000,-500.0,0.00012797,2]
[424734307,1781097032000,-500.0,0.00012797,2]
[424734312,1781097032000,-185.91727125,0.00012797,2]
[424734313,1781097032000,-500.0,0.00012797,2]
[424734314,1781097032000,-361.21032862,0.00012797,2]
[424734321,1781097032000,-753.56147773,0.00012797,2]
[424734315,1781097032000,-256.43682364,0.00012797,2]
[424734316,1781097032000,-1300.24321183,0.00012797,3]
[424734317,1781097032000,-250.0,0.00012797,2]
[424734318,1781097032000,-499.30171557,0.00012797,2]
[424734320,1781097032000,-355.78833364,0.00012797,2]
[424734319,1781097032000,-391.34847306,0.00012797,2]
[424734322,1781097032000,-888.20600697,0.00012798,2]
[424734323,1781097032000,-623.75982494,0.00012798,2]
[424734325,1781097032000,-988.46017311,0.00012798,2]
[424734326,1781097032000,-2304.52955635,0.00012798,2]
[424734328,1781097032000,-5110.11692132,0.00012798,2]
[424734324,1781097032000,-753.25128823,0.00012798,2]
[424734327,1781097032000,-1300.0,0.00012798,2]
[424734329,1781097032000,-5647.15038001,0.00012798,2]
[424734276,1781097032000,-359.08174895,0.0001255,2]
[424734310,1781097032000,-500.0,0.00012797,2]
[424734309,1781097032000,-500.0,0.00012797,2]
[424734311,1781097032000,-500.0,0.00012797,2]
[424734304,1781097032000,-451.3496824,0.00012797,2]
[424734280,1781097032000,-500.0,0.0001255,2]
[424734282,1781097032000,-500.0,0.0001255,2]
[424734279,1781097032000,-500.0,0.0001255,2]
[424734281,1781097032000,-552.49199407,0.0001255,2]
[424734302,1781097032000,-500.0,0.00012797,2]
[424734285,1781097032000,-3292.62799558,0.00012699,2]
[424734287,1781097032000,-166.66,0.00012709,2]
[424734284,1781097032000,-150.0,0.000126,2]
[424734286,1781097032000,-31441.18403123,0.00012699,2]
[424734288,1781097032000,-166.09,0.00012746,2]
[424734289,1781097032000,-1687.24630316,0.00012788,2]
[424734291,1781097032000,-500.0,0.00012797,2]
[424734283,1781097032000,-1000.0,0.00012584,2]
[424734290,1781097032000,-500.0,0.00012797,2]
[424734292,1781097032000,-481.79458278,0.00012797,2]
[424734293,1781097032000,-500.0,0.00012797,2]
[424734296,1781097032000,-500.0,0.00012797,2]
[424734294,1781097032000,-500.0,0.00012797,2]
[424734303,1781097032000,-500.0,0.00012797,2]
[424734295,1781097032000,-539.47117702,0.00012797,2]
[424734297,1781097032000,-500.0,0.00012797,2]
[424734300,1781097032000,-500.0,0.00012797,2]
[424734298,1781097032000,-500.0,0.00012797,2]
[424734299,1781097032000,-500.0,0.00012797,2]
[424734301,1781097032000,-500.0,0.00012797,2]
[424734330,1781097034000,-845.84,0.00012798,2]
[424734331,1781097034000,-307.87,0.00012798,2]
[424734332,1781097034000,-24167.76920966,0.00012798,2]
[424734334,1781097034000,-538.18293477,0.00012798,2]
[424734335,1781097034000,-919.49695675,0.00012798,2]
[424734336,1781097034000,-1575.73615394,0.00012798,2]
[424734333,1781097034000,-1254.41808677,0.00012798,2]
[424734352,1781097037000,-3597.96751057,0.00012798,2]
[424734346,1781097037000,-1436.63248496,0.00012798,2]
[424734348,1781097037000,-3061.17696543,0.00012798,2]
[424734347,1781097037000,-4905.00000005,0.00012798,2]
[424734349,1781097037000,-552.93113016,0.00012798,2]
[424734350,1781097037000,-2762.94568636,0.00012798,2]
[424734351,1781097037000,-490.0,0.00012798,2]
[424734353,1781097037000,-13097.96029539,0.00012798,2]
[424734354,1781097037000,-3015.00009,0.00012798,2]
[424734356,1781097037000,-278.7252,0.00012798,2]
[424734355,1781097037000,-1419855.59834426,0.00012798,2]
[424734365,1781097037000,-500.0,0.00012824,2]
[424734358,1781097037000,-150.0,0.00012824,2]
[424734359,1781097037000,-150.0,0.00012824,2]
[424734360,1781097037000,-500.0,0.00012824,2]
[424734362,1781097037000,-500.0,0.00012824,2]
[424734361,1781097037000,-218.83171562,0.00012824,2]
[424734364,1781097037000,-500.0,0.00012824,2]
[424734363,1781097037000,-500.0,0.00012824,2]
[424734357,1781097037000,-150.0,0.00012824,2]
[424734366,1781097037000,-500.0,0.00012824,2]
[424734367,1781097037000,-500.0,0.00012824,2]
[424734444,1781097038000,-150.0,0.00013488,2]
[424734461,1781097038000,-150.0,0.000135,2]
[424734446,1781097038000,-150.0,0.00013488,2]
[424734432,1781097038000,-30940.84046175,0.00013344,2]
[424734434,1781097038000,-2000.0,0.0001336,2]
[424734429,1781097038000,-3292.62799553,0.00013328,2]
[424734421,1781097038000,-227.0,0.00013198,2]
[424734419,1781097038000,-2729.15065849,0.00013195,2]
[424734416,1781097038000,-31441.18403114,0.00013188,2]
[424734414,1781097038000,-166.09,0.00013154,2]
[424734451,1781097038000,-150.0,0.00013488,2]
[424734412,1781097038000,-30940.84046175,0.00013121,2]
[424734440,1781097038000,-257.15629635,0.00013488,2]
[424734442,1781097038000,-150.0,0.00013488,2]
[424734436,1781097038000,-31441.18403114,0.00013433,2]
[424734448,1781097038000,-150.0,0.00013488,2]
[424734453,1781097038000,-150.0,0.00013488,2]
[424734425,1781097038000,-166.66,0.00013213,2]
[424734455,1781097038000,-150.0,0.00013488,2]
[424734467,1781097038000,-277.890288,0.00013513,2]
[424734469,1781097038000,-150.0,0.00013528,2]
[424734476,1781097038000,-150.0,0.000136,2]
[424734471,1781097038000,-166.09,0.00013561,2]
[424734473,1781097038000,-30940.84046175,0.00013566,2]
[424734474,1781097038000,-150.0,0.00013569,2]
[424734475,1781097038000,-1292.97554716,0.00013599,2]
[424734438,1781097038000,-150.0,0.00013488,2]
[424734427,1781097038000,-997.00279469,0.00013316,2]
[424734393,1781097038000,-152.51561585,0.00013033,2]
[424734409,1781097038000,-2000.0,0.00013099,2]
[424734369,1781097038000,-500.0,0.00012824,2]
[424734370,1781097038000,-500.0,0.00012824,2]
[424734368,1781097038000,-500.0,0.00012824,2]
[424734372,1781097038000,-500.0,0.00012824,2]
[424734374,1781097038000,-500.0,0.00012824,2]
[424734384,1781097038000,-6820.62317621,0.00012999,2]
[424734373,1781097038000,-500.0,0.00012824,2]
[424734375,1781097038000,-500.0,0.00012824,2]
[424734377,1781097038000,-10140.38599662,0.0001283,2]
[424734381,1781097038000,-31441.18403114,0.00012944,2]
[424734382,1781097038000,-166.66,0.00012961,2]
[424734376,1781097038000,-230.9383663,0.00012824,2]
[424734379,1781097038000,-2500.0,0.00012898,2]
[424734383,1781097038000,-353656.1095,0.00012998,2]
[424734378,1781097038000,-155.4,0.00012835,2]
[424734380,1781097038000,-30940.84046178,0.00012899,2]
[424734385,1781097038000,-997.00279474,0.00012999,2]
[424734389,1781097038000,-3292.62799553,0.00013013,2]
[424734387,1781097038000,-1491.17536422,0.00012999,2]
[424734391,1781097038000,-215.92376884,0.00013023,2]
[424734403,1781097038000,-199.44997292,0.00013098,3]
[424734405,1781097038000,-222.0,0.00013099,2]
[424734399,1781097038000,-1300.24321183,0.00013098,3]
[424734397,1781097038000,-1300.24321182,0.00013098,3]
[424734407,1781097038000,-229.0,0.00013099,2]
[424734423,1781097038000,-228.0,0.00013198,2]
[424734459,1781097038000,-1000.0,0.000135,2]
[424734395,1781097038000,-151.0,0.00013096,2]
[424734463,1781097038000,-177.776616,0.00013513,2]
[424734511,1781097038000,-500.0,0.00013698,2]
[424734530,1781097038000,-501.18,0.00013698,2]
[424734504,1781097038000,-500.0,0.00013698,2]
[424734503,1781097038000,-500.0,0.00013698,2]
[424734508,1781097038000,-500.0,0.00013698,2]
[424734512,1781097038000,-500.0,0.00013698,2]
[424734510,1781097038000,-500.0,0.00013698,2]
[424734509,1781097038000,-267.12,0.00013698,2]
[424734513,1781097038000,-500.0,0.00013698,2]
[424734514,1781097038000,-500.0,0.00013698,2]
[424734524,1781097038000,-593.17756439,0.00013698,2]
[424734516,1781097038000,-500.0,0.00013698,2]
[424734506,1781097038000,-500.0,0.00013698,2]
[424734515,1781097038000,-500.0,0.00013698,2]
[424734520,1781097038000,-500.0,0.00013698,2]
[424734518,1781097038000,-500.0,0.00013698,2]
[424734521,1781097038000,-500.0,0.00013698,2]
[424734523,1781097038000,-500.0,0.00013698,2]
[424734522,1781097038000,-500.0,0.00013698,2]
[424734519,1781097038000,-500.0,0.00013698,2]
[424734457,1781097038000,-150.0,0.00013488,2]
[424734529,1781097038000,-501.18,0.00013698,2]
[424734527,1781097038000,-276.98837881,0.00013698,2]
[424734528,1781097038000,-501.18,0.00013698,2]
[424734526,1781097038000,-590.47777373,0.00013698,2]
[424734531,1781097038000,-501.18,0.00013698,2]
[424734517,1781097038000,-500.0,0.00013698,2]
[424734507,1781097038000,-500.0,0.00013698,2]
[424734525,1781097038000,-417.45761275,0.00013698,2]
[424734502,1781097038000,-500.0,0.00013698,2]
[424734505,1781097038000,-500.0,0.00013698,2]
[424734465,1781097038000,-195.407562,0.00013513,2]
[424734477,1781097038000,-150.0,0.00013609,2]
[424734480,1781097038000,-997.00279469,0.00013633,2]
[424734481,1781097038000,-150.0,0.00013638,2]
[424734478,1781097038000,-180.8,0.00013614,2]
[424734485,1781097038000,-164.522573,0.00013648,2]
[424734486,1781097038000,-169.045147,0.00013648,2]
[424734482,1781097038000,-255.0,0.00013641,2]
[424734488,1781097038000,-150.0,0.0001365,2]
[424734487,1781097038000,-413.616177,0.00013648,2]
[424734483,1781097038000,-3292.62799553,0.00013642,2]
[424734484,1781097038000,-160.0,0.00013648,2]
[424734479,1781097038000,-150.0,0.00013624,2]
[424734489,1781097038000,-150.0,0.00013675,2]
[424734491,1781097038000,-150.0,0.0001369,2]
[424734498,1781097038000,-500.0,0.00013698,2]
[424734500,1781097038000,-500.0,0.00013698,2]
[424734497,1781097038000,-500.0,0.00013698,2]
[424734490,1781097038000,-31441.18403114,0.00013677,2]
[424734499,1781097038000,-500.0,0.00013698,2]
[424734494,1781097038000,-500.0,0.00013698,2]
[424734495,1781097038000,-500.0,0.00013698,2]
[424734493,1781097038000,-574.57860626,0.00013698,2]
[424734496,1781097038000,-500.0,0.00013698,2]
[424734492,1781097038000,-155.4,0.00013691,2]
[424734501,1781097038000,-500.0,0.00013698,2]
[424734558,1781097039000,-500.0,0.00013698,2]
[424734557,1781097039000,-352.77194654,0.00013698,2]
[424734562,1781097039000,-500.0,0.00013698,2]
[424734563,1781097039000,-500.0,0.00013698,2]
[424734560,1781097039000,-500.0,0.00013698,2]
[424734565,1781097039000,-500.0,0.00013698,2]
[424734564,1781097039000,-500.0,0.00013698,2]
[424734561,1781097039000,-500.0,0.00013698,2]
[424734566,1781097039000,-500.0,0.00013698,2]
[424734573,1781097039000,-500.0,0.00013698,2]
[424734570,1781097039000,-500.0,0.00013698,2]
[424734567,1781097039000,-500.0,0.00013698,2]
[424734577,1781097039000,-500.0,0.00013698,2]
[424734576,1781097039000,-500.0,0.00013698,2]
[424734569,1781097039000,-500.0,0.00013698,2]
[424734571,1781097039000,-500.0,0.00013698,2]
[424734575,1781097039000,-500.0,0.00013698,2]
[424734568,1781097039000,-500.0,0.00013698,2]
[424734572,1781097039000,-500.0,0.00013698,2]
[424734556,1781097039000,-500.0,0.00013698,2]
[424734574,1781097039000,-500.0,0.00013698,2]
[424734559,1781097039000,-500.0,0.00013698,2]
[424734540,1781097039000,-501.18,0.00013698,2]
[424734553,1781097039000,-500.0,0.00013698,2]
[424734532,1781097039000,-501.18,0.00013698,2]
[424734536,1781097039000,-501.18,0.00013698,2]
[424734534,1781097039000,-501.18,0.00013698,2]
[424734535,1781097039000,-501.18,0.00013698,2]
[424734533,1781097039000,-501.18,0.00013698,2]
[424734537,1781097039000,-501.18,0.00013698,2]
[424734538,1781097039000,-501.18,0.00013698,2]
[424734542,1781097039000,-501.18,0.00013698,2]
[424734539,1781097039000,-501.18,0.00013698,2]
[424734549,1781097039000,-500.0,0.00013698,2]
[424734541,1781097039000,-501.18,0.00013698,2]
[424734545,1781097039000,-500.0,0.00013698,2]
[424734544,1781097039000,-500.0,0.00013698,2]
[424734550,1781097039000,-500.0,0.00013698,2]
[424734552,1781097039000,-500.0,0.00013698,2]
[424734551,1781097039000,-500.0,0.00013698,2]
[424734547,1781097039000,-500.0,0.00013698,2]
[424734546,1781097039000,-500.0,0.00013698,2]
[424734548,1781097039000,-500.0,0.00013698,2]
[424734555,1781097039000,-500.0,0.00013698,2]
[424734543,1781097039000,-500.0,0.00013698,2]
[424734578,1781097039000,-500.0,0.00013698,2]
[424734587,1781097039000,-500.0,0.00013698,2]
[424734580,1781097039000,-500.0,0.00013698,2]
[424734604,1781097039000,-637.49,0.00013698,2]
[424734607,1781097039000,-637.49,0.00013698,2]
[424734608,1781097039000,-637.49,0.00013698,2]
[424734609,1781097039000,-500.0,0.00013698,2]
[424734611,1781097039000,-500.0,0.00013698,2]
[424734619,1781097039000,-500.0,0.00013698,2]
[424734620,1781097039000,-500.0,0.00013698,2]
[424734610,1781097039000,-289.86791566,0.00013698,2]
[424734615,1781097039000,-413.03435697,0.00013698,2]
[424734603,1781097039000,-637.49,0.00013698,2]
[424734617,1781097039000,-500.0,0.00013698,2]
[424734614,1781097039000,-500.0,0.00013698,2]
[424734616,1781097039000,-500.0,0.00013698,2]
[424734618,1781097039000,-500.0,0.00013698,2]
[424734622,1781097039000,-500.0,0.00013698,2]
[424734624,1781097039000,-500.0,0.00013698,2]
[424734623,1781097039000,-500.0,0.00013698,2]
[424734621,1781097039000,-500.0,0.00013698,2]
[424734625,1781097039000,-500.0,0.00013698,2]
[424734588,1781097039000,-500.0,0.00013698,2]
[424734613,1781097039000,-500.0,0.00013698,2]
[424734600,1781097039000,-637.49,0.00013698,2]
[424734612,1781097039000,-500.0,0.00013698,2]
[424734606,1781097039000,-637.49,0.00013698,2]
[424734581,1781097039000,-225.08989443,0.00013698,2]
[424734602,1781097039000,-637.49,0.00013698,2]
[424734579,1781097039000,-500.0,0.00013698,2]
[424734582,1781097039000,-500.0,0.00013698,2]
[424734584,1781097039000,-500.0,0.00013698,2]
[424734583,1781097039000,-500.0,0.00013698,2]
[424734585,1781097039000,-500.0,0.00013698,2]
[424734589,1781097039000,-500.0,0.00013698,2]
[424734591,1781097039000,-500.0,0.00013698,2]
[424734592,1781097039000,-500.0,0.00013698,2]
[424734586,1781097039000,-500.0,0.00013698,2]
[424734593,1781097039000,-500.0,0.00013698,2]
[424734598,1781097039000,-500.0,0.00013698,2]
[424734590,1781097039000,-500.0,0.00013698,2]
[424734595,1781097039000,-500.0,0.00013698,2]
[424734597,1781097039000,-500.0,0.00013698,2]
[424734596,1781097039000,-500.0,0.00013698,2]
[424734594,1781097039000,-500.0,0.00013698,2]
[424734599,1781097039000,-500.0,0.00013698,2]
[424734601,1781097039000,-637.49,0.00013698,2]
[424734605,1781097039000,-637.49,0.00013698,2]
[424734655,1781097040000,-500.0,0.00013698,2]
[424734663,1781097040000,-500.0,0.00013698,2]
[424734664,1781097040000,-500.0,0.00013698,2]
[424734661,1781097040000,-500.0,0.00013698,2]
[424734665,1781097040000,-500.0,0.00013698,2]
[424734658,1781097040000,-500.0,0.00013698,2]
[424734662,1781097040000,-500.0,0.00013698,2]
[424734654,1781097040000,-500.0,0.00013698,2]
[424734656,1781097040000,-500.0,0.00013698,2]
[424734660,1781097040000,-500.0,0.00013698,2]
[424734659,1781097040000,-500.0,0.00013698,2]
[424734671,1781097040000,-500.0,0.00013698,2]
[424734668,1781097040000,-500.0,0.00013698,2]
[424734669,1781097040000,-500.0,0.00013698,2]
[424734673,1781097040000,-500.0,0.00013698,2]
[424734666,1781097040000,-500.0,0.00013698,2]
[424734672,1781097040000,-500.0,0.00013698,2]
[424734670,1781097040000,-500.0,0.00013698,2]
[424734676,1781097040000,-500.0,0.00013698,2]
[424734675,1781097040000,-500.0,0.00013698,2]
[424734674,1781097040000,-500.0,0.00013698,2]
[424734678,1781097040000,-657.58,0.00013699,2]
[424734677,1781097040000,-567.85831353,0.00013698,2]
[424734651,1781097040000,-500.0,0.00013698,2]
[424734667,1781097040000,-500.0,0.00013698,2]
[424734648,1781097040000,-500.0,0.00013698,2]
[424734628,1781097040000,-500.0,0.00013698,2]
[424734650,1781097040000,-500.0,0.00013698,2]
[424734681,1781097040000,-22258.35,0.00013699,2]
[424734630,1781097040000,-500.0,0.00013698,2]
[424734631,1781097040000,-500.0,0.00013698,2]
[424734629,1781097040000,-500.0,0.00013698,2]
[424734626,1781097040000,-500.0,0.00013698,2]
[424734627,1781097040000,-500.0,0.00013698,2]
[424734632,1781097040000,-500.0,0.00013698,2]
[424734634,1781097040000,-502.14487461,0.00013698,2]
[424734636,1781097040000,-500.0,0.00013698,2]
[424734635,1781097040000,-500.0,0.00013698,2]
[424734637,1781097040000,-500.0,0.00013698,2]
[424734653,1781097040000,-500.0,0.00013698,2]
[424734638,1781097040000,-500.0,0.00013698,2]
[424734641,1781097040000,-500.0,0.00013698,2]
[424734640,1781097040000,-500.0,0.00013698,2]
[424734642,1781097040000,-500.0,0.00013698,2]
[424734633,1781097040000,-500.0,0.00013698,2]
[424734643,1781097040000,-500.0,0.00013698,2]
[424734644,1781097040000,-500.0,0.00013698,2]
[424734646,1781097040000,-500.0,0.00013698,2]
[424734645,1781097040000,-500.0,0.00013698,2]
[424734647,1781097040000,-500.0,0.00013698,2]
[424734649,1781097040000,-500.0,0.00013698,2]
[424734652,1781097040000,-316.16211611,0.00013698,2]
[424734639,1781097040000,-500.0,0.00013698,2]
[424734685,1781097040000,-1895.56843966,0.00013699,2]
[424734700,1781097040000,-1895.56843966,0.00013699,2]
[424734684,1781097040000,-1895.56843966,0.00013699,2]
[424734718,1781097040000,-1895.56843966,0.00013699,2]
[424734716,1781097040000,-1895.56843966,0.00013699,2]
[424734717,1781097040000,-1895.56843966,0.00013699,2]
[424734726,1781097040000,-1895.56843966,0.00013699,2]
[424734721,1781097040000,-1895.56843966,0.00013699,2]
[424734725,1781097040000,-1895.56843966,0.00013699,2]
[424734719,1781097040000,-1895.56843966,0.00013699,2]
[424734723,1781097040000,-1895.56843966,0.00013699,2]
[424734724,1781097040000,-1895.56843966,0.00013699,2]
[424734722,1781097040000,-1895.56843966,0.00013699,2]
[424734728,1781097040000,-1895.56843966,0.00013699,2]
[424734709,1781097040000,-1895.56843966,0.00013699,2]
[424734727,1781097040000,-1895.56843966,0.00013699,2]
[424734730,1781097040000,-1895.56843966,0.00013699,2]
[424734731,1781097040000,-1895.56843966,0.00013699,2]
[424734734,1781097040000,-1895.56843966,0.00013699,2]
[424734732,1781097040000,-1895.56843966,0.00013699,2]
[424734735,1781097040000,-1895.56843966,0.00013699,2]
[424734733,1781097040000,-1895.56843966,0.00013699,2]
[424734736,1781097040000,-1895.56843966,0.00013699,2]
[424734737,1781097040000,-1895.56843966,0.00013699,2]
[424734738,1781097040000,-1895.56843966,0.00013699,2]
[424734740,1781097040000,-1890.44528172,0.00013699,2]
[424734680,1781097040000,-162.54,0.00013699,2]
[424734729,1781097040000,-1895.56843966,0.00013699,2]
[424734707,1781097040000,-1895.56843966,0.00013699,2]
[424734739,1781097040000,-1112.5471825,0.00013699,2]
[424734702,1781097040000,-1895.56843966,0.00013699,2]
[424734708,1781097040000,-1895.56843966,0.00013699,2]
[424734679,1781097040000,-200.0,0.00013699,2]
[424734683,1781097040000,-1895.56843966,0.00013699,2]
[424734687,1781097040000,-1895.56843966,0.00013699,2]
[424734686,1781097040000,-1895.56843966,0.00013699,2]
[424734692,1781097040000,-1895.56843966,0.00013699,2]
[424734688,1781097040000,-1895.56843966,0.00013699,2]
[424734682,1781097040000,-1895.56843966,0.00013699,2]
[424734690,1781097040000,-1895.56843966,0.00013699,2]
[424734691,1781097040000,-1895.56843966,0.00013699,2]
[424734694,1781097040000,-1895.56843966,0.00013699,2]
[424734698,1781097040000,-1895.56843966,0.00013699,2]
[424734689,1781097040000,-1895.56843966,0.00013699,2]
[424734693,1781097040000,-1895.56843966,0.00013699,2]
[424734703,1781097040000,-1895.56843966,0.00013699,2]
[424734696,1781097040000,-1895.56843966,0.00013699,2]
[424734704,1781097040000,-1895.56843966,0.00013699,2]
[424734705,1781097040000,-1895.56843966,0.00013699,2]
[424734741,1781097040000,-1890.44528172,0.00013699,2]
[424734706,1781097040000,-1895.56843966,0.00013699,2]
[424734711,1781097040000,-1895.56843966,0.00013699,2]
[424734701,1781097040000,-1895.56843966,0.00013699,2]
[424734695,1781097040000,-1895.56843966,0.00013699,2]
[424734699,1781097040000,-1895.56843966,0.00013699,2]
[424734697,1781097040000,-1895.56843966,0.00013699,2]
[424734713,1781097040000,-1895.56843966,0.00013699,2]
[424734782,1781097041000,-208.970333,0.00013739,2]
[424734773,1781097041000,-1871.54082891,0.00013699,2]
[424734781,1781097041000,-184.485166,0.00013739,2]
[424734775,1781097041000,-1871.54082891,0.00013699,2]
[424734768,1781097041000,-1871.54082891,0.00013699,2]
[424734776,1781097041000,-150.0,0.000137,2]
[424734779,1781097041000,-150.0,0.00013731,2]
[424734772,1781097041000,-1871.54082891,0.00013699,2]
[424734769,1781097041000,-1871.54082891,0.00013699,2]
[424734774,1781097041000,-1871.54082891,0.00013699,2]
[424734778,1781097041000,-237.633433,0.0001373,2]
[424734791,1781097041000,-150.0,0.00013862,2]
[424734780,1781097041000,-160.0,0.00013739,2]
[424734783,1781097041000,-150.0,0.0001376,2]
[424734785,1781097041000,-228.94113979,0.00013778,2]
[424734786,1781097041000,-150.0,0.00013787,2]
[424734784,1781097041000,-150.0,0.00013771,2]
[424734788,1781097041000,-150.0,0.00013812,2]
[424734790,1781097041000,-150.0,0.00013852,2]
[424734789,1781097041000,-636.28291595,0.00013833,2]
[424734787,1781097041000,-30940.84046175,0.00013788,2]
[424734792,1781097041000,-150.0,0.00013893,2]
[424734766,1781097041000,-1871.54082891,0.00013699,2]
[424734777,1781097041000,-150.0,0.00013702,2]
[424734765,1781097041000,-1890.44528172,0.00013699,2]
[424734755,1781097041000,-1890.44528172,0.00013699,2]
[424734762,1781097041000,-1890.44528172,0.00013699,2]
[424734795,1781097041000,-150.0,0.00013916,2]
[424734747,1781097041000,-1890.44528172,0.00013699,2]
[424734742,1781097041000,-1890.44528172,0.00013699,2]
[424734744,1781097041000,-1890.44528172,0.00013699,2]
[424734743,1781097041000,-1890.44528172,0.00013699,2]
[424734746,1781097041000,-1890.44528172,0.00013699,2]
[424734745,1781097041000,-1890.44528172,0.00013699,2]
[424734749,1781097041000,-1890.44528172,0.00013699,2]
[424734748,1781097041000,-1890.44528172,0.00013699,2]
[424734751,1781097041000,-1890.44528172,0.00013699,2]
[424734750,1781097041000,-1890.44528172,0.00013699,2]
[424734752,1781097041000,-1890.44528172,0.00013699,2]
[424734753,1781097041000,-1890.44528172,0.00013699,2]
[424734756,1781097041000,-1890.44528172,0.00013699,2]
[424734760,1781097041000,-1890.44528172,0.00013699,2]
[424734759,1781097041000,-1890.44528172,0.00013699,2]
[424734758,1781097041000,-1890.44528172,0.00013699,2]
[424734757,1781097041000,-1890.44528172,0.00013699,2]
[424734761,1781097041000,-1890.44528172,0.00013699,2]
[424734770,1781097041000,-1871.54082891,0.00013699,2]
[424734771,1781097041000,-1871.54082891,0.00013699,2]
[424734763,1781097041000,-1890.44528172,0.00013699,2]
[424734767,1781097041000,-1871.54082891,0.00013699,2]
[424734764,1781097041000,-1890.44528172,0.00013699,2]
[424734793,1781097041000,-150.0,0.00013896,2]
[424734754,1781097041000,-1890.44528172,0.00013699,2]
[424734802,1781097041000,-3292.62799553,0.00013957,2]
[424734826,1781097041000,-150.0,0.00014169,2]
[424734825,1781097041000,-300.54214327,0.00014152,2]
[424734829,1781097041000,-150.0,0.000142,2]
[424734835,1781097041000,-500.0,0.00014242,2]
[424734830,1781097041000,-150.0,0.00014217,2]
[424734827,1781097041000,-150.0,0.00014176,2]
[424734831,1781097041000,-30940.84046175,0.00014233,2]
[424734832,1781097041000,-150.0,0.00014237,2]
[424734828,1781097041000,-150.0,0.000142,2]
[424734833,1781097041000,-150.0,0.00014237,2]
[424734845,1781097041000,-188.007353,0.0001433,2]
[424734824,1781097041000,-150.0,0.00014136,2]
[424734837,1781097041000,-150.0,0.00014257,2]
[424734836,1781097041000,-500.0,0.00014242,2]
[424734838,1781097041000,-997.00279469,0.00014266,2]
[424734840,1781097041000,-150.0,0.00014298,2]
[424734842,1781097041000,-150.0,0.00014305,2]
[424734841,1781097041000,-150.0,0.000143,2]
[424734844,1781097041000,-224.348964,0.0001433,2]
[424734839,1781097041000,-3292.62799553,0.00014271,2]
[424734843,1781097041000,-300.54214327,0.0001431,2]
[424734847,1781097041000,-150.0,0.00014344,2]
[424734848,1781097041000,-300.54214327,0.00014368,2]
[424734794,1781097041000,-907.8073641,0.000139,2]
[424734846,1781097041000,-150.0,0.00014338,2]
[424734822,1781097041000,-150.0,0.00014095,2]
[424734834,1781097041000,-300.54214327,0.00014242,2]
[424734819,1781097041000,-150.0,0.0001405,2]
[424734796,1781097041000,-31441.18403114,0.00013922,2]
[424734820,1781097041000,-150.0,0.00014055,2]
[424734797,1781097041000,-150.0,0.00013933,2]
[424734798,1781097041000,-300.54214327,0.00013936,2]
[424734799,1781097041000,-150.0,0.00013937,2]
[424734800,1781097041000,-997.00279469,0.0001395,2]
[424734801,1781097041000,-1491.17536422,0.0001395,2]
[424734804,1781097041000,-150.0,0.00013974,2]
[424734806,1781097041000,-500.0,0.00013989,2]
[424734803,1781097041000,-166.09,0.00013968,2]
[424734805,1781097041000,-150.0,0.00013987,2]
[424734808,1781097041000,-500.0,0.00013989,2]
[424734807,1781097041000,-500.0,0.00013989,2]
[424734810,1781097041000,-500.0,0.00013989,2]
[424734821,1781097041000,-150.0,0.00014087,2]
[424734809,1781097041000,-500.0,0.00013989,2]